[Event "FIDE WTC Prel-A 2022"]
[Site "Jerusalem"]
[Date "2022.11.22"]
[Round "5.6"]
[White "Moussard, Jules"]
[Black "Xu, Xiangyu"]
[Result "1-0"]
[ECO "B92"]
[WhiteElo "2676"]
[BlackElo "2577"]
[Annotator "TA"]
[PlyCount "139"]
[EventDate "2022.11.20"]
[EventType "team-tourn"]
[EventCountry "ISR"]
[SourceTitle "playchess.com"]
[Source "ChessBase"]
[SourceQuality "1"]
[WhiteTeam "France"]
[BlackTeam "China"]
[WhiteTeamCountry "FRA"]
[BlackTeamCountry "CHN"]
[TimeControl "2700+10"]

{[%evp 16,139,15,4,7,2,10,16,8,11,13,0,10,0,0,0,0,0,8,0,22,18,39,25,22,10,22,6,14,7,41,-56,-42,-47,0,0,0,1,5,35,30,40,37,61,56,65,86,60,79,68,62,56,115,0,0,0,0,0,0,0,14,10,37,44,42,35,34,24,44,11,12,10,18,16,11,6,10,10,4,0,0,0,12,8,22,21,21,22,67,62,94,18,30,29,66,66,67,67,64,62,61,0,67,67,1843,61,1723,1627,29971,29972,29976,29977,29977,29978,29978,29974,29984,29985,29984,29985,29987,29988,29988,29989,29993,29993]} 1. e4 {[%emt 0:00:02]} c5 {[%emt 0:00:02]} 2. Nf3 {[%emt 0:00:01]} d6 {[%emt 0:00:02]} 3. d4 {[%emt 0:00:02]} cxd4 {[%emt 0:00:03]} 4. Nxd4 {[%emt 0:00:02]} Nf6 {[%emt 0:00:03]} 5. Nc3 {[%emt 0:00:02]} a6 {[%emt 0:00:02]} 6. Be2 {[%emt 0:00:03]} e5 {[%emt 0:00:06]} 7. Nb3 {[%emt 0:00:04]} Be7 {[%emt 0:00:05]} 8. O-O {[%emt 0:00:04]} O-O {[%emt 0:00:04]} 9. Re1 {[%emt 0:00:02]} Be6 {[%emt 0:00:39] B92: Sicilian Najdorf: 6 Be2.} 10. Be3 {[%emt 0:00:04]} Nbd7 {[%emt 0:00:07]} 11. a4 {[%emt 0:00:02]} Qc7 {[%emt 0:01:17] The position is equal.} 12. a5 {[%emt 0:00:07]} Rfc8 {[%emt 0:01:01]} 13. Bf3 {[%emt 0:05:11]} h6 {[%emt 0:00:48]} 14. h3 {[%emt 0:00:27]} Rab8 {[%emt 0:02:52] 14...Qc6 is not played anymore.} 15. Ba7 {[%emt 0:09:34]} Ra8 {[%emt 0:00:04]} 16. Be3 {[%emt 0:00:01]} Rab8 {[%emt 0:00:08] is the new trend.} 17. Nd2 {[%emt 0:00:17]} Bf8 {[%emt 0:00:26] [#]} 18. Qe2 $146 {[%emt 0:01:52]} ({Predecessor:} 18. Nf1 b5 19. axb6 Nxb6 20. Rxa6 Nc4 21. Ra7 Qd8 22. b3 Nxe3 23. Rxe3 d5 24. exd5 {1-0 (54) Sevian,S (2684)-Hakobyan,A (2601) Saint Louis 2022}) 18... Qd8 {[%emt 0:00:08]} 19. Rec1 {[%emt 0:01:15]} Qe8 {[%emt 0:05:57]} 20. Kh2 {[%emt 0:02:52]} Be7 {[%emt 0:02:28]} 21. g3 {[%emt 0:01:12]} Bd8 {[%emt 0:00:25]} 22. Bg2 {[%emt 0:01:36]} b6 {[%emt 0:04:48]} 23. f4 {[%emt 0:01:08]} (23. axb6 $14 Nxb6 24. Qxa6 (24. Rxa6 Nc4 $11)) 23... exf4 $15 {[%emt 0:01:20]} 24. gxf4 {[%emt 0:00:03]} Nf8 {[%emt 0:00:19]} (24... bxa5 $15 25. Rcb1 Rb4) 25. axb6 $11 {[%emt 0:01:28]} Bxb6 {[%emt 0:00:21]} 26. Rxa6 {[%emt 0:00:08]} (26. Bxb6 {seems wilder.} Rxb6 27. Rcb1 Qe7 28. Qf2) 26... Bxe3 {[%emt 0:01:15]} 27. Qxe3 {[%emt 0:00:02]} Rxb2 {[%emt 0:00:09]} 28. Rxd6 {[%emt 0:00:10]} Ng6 {[%emt 0:01:20][%cal Og6f4]} 29. e5 {[%emt 0:01:43]} Nh5 {[%emt 0:01:55]} 30. Ne2 {[%emt 0:00:23]} Nh4 {[%emt 0:06:30] Inhibits Qf3.} (30... Rbxc2 $2 31. Rxc2 Rxc2 32. Bf3 Ngxf4 33. Nxf4 $18) 31. Nd4 {[%emt 0:01:45]} Nxg2 {[%emt 0:06:56]} 32. Kxg2 {[%emt 0:00:03]} Rd8 {[%emt 0:00:14]} 33. Kh2 {[%emt 0:00:50][%cal Bg2h2,Bh2g1,Bg1f2][%mdl 32]} Bd5 {[%emt 0:00:36] [#]} (33... Qf8 $14) 34. Rxd8 {[%emt 0:02:58]} (34. Nf5 $1 $16) 34... Qxd8 {[%emt 0:00:02]} 35. Rg1 {[%emt 0:00:32]} Kh8 {[%emt 0:00:47]} 36. f5 {[%emt 0:01:17][%cal Of5f6] Hoping for f6!} Qc7 {[%emt 0:00:11]} 37. Re1 {[%emt 0:01:04]} f6 {[%emt 0:00:59]} 38. Kg1 {[%emt 0:00:29]} fxe5 {[%emt 0:02:18]} (38... Rxc2 {looks sharper.} 39. Nxc2 Qxc2 40. Qd4 Bc6) 39. Qxe5 {[%emt 0:00:03]} Qxe5 {[%emt 0:01:21]} 40. Rxe5 {[%emt 0:00:01]} Nf6 {[%emt 0:00:02]} 41. Kf2 {[%emt 0:00:20]} Kg8 {[%emt 0:00:06]} 42. Re7 {[%emt 0:00:36]} Ra2 {[%emt 0:00:14]} 43. Rc7 {[%emt 0:03:20]} Ra3 {[%emt 0:00:46]} 44. c3 {[%emt 0:01:36]} Ra2 {[%emt 0:00:01]} 45. Ke3 {[%emt 0:00:07]} Bg2 {[%emt 0:00:13] Threatens to win with ...Nd5+.} 46. Rc8+ {[%emt 0:00:01]} Kf7 $1 {[%emt 0:00:15]} 47. N2f3 {[%emt 0:01:53] Strongly threatening Ne5+.} Nd5+ {[%emt 0:00:36]} 48. Ke4 {[%emt 0:00:30]} Ra5 {[%emt 0:00:03]} 49. c4 {[%emt 0:00:45]} Nf6+ {[%emt 0:01:20]} 50. Kf4 {[%emt 0:00:01] Ne5+ is the strong threat.} Nh5+ {[%emt 0:00:42]} 51. Kg4 {[%emt 0:00:10] aiming for Rc7+.} Nf6+ {[%emt 0:00:13]} 52. Kg3 {[%emt 0:00:01]} Bxf3 {[%emt 0:00:06]} 53. Kxf3 $14 {[%emt 0:00:01][%mdl 4096] Endgame KRN-KRN} (53. Rc7+ $16 Kg8 54. Kxf3) 53... Ra3+ $11 {[%emt 0:00:15]} 54. Kf4 {[%emt 0:00:05]} Rxh3 {[%emt 0:00:13]} 55. Rc7+ {[%emt 0:00:28]} Kg8 {[%emt 0:00:09]} 56. Ne6 {[%emt 0:00:27]} Rh4+ {[%emt 0:00:03]} 57. Kf3 {[%emt 0:00:08]} Rh3+ {[%emt 0:00:30]} 58. Kf4 {[%emt 0:00:22] White has more active pieces.} Rh4+ {[%emt 0:00:02]} 59. Kg3 {[%emt 0:00:02]} Rh5 $2 {[%emt 0:00:29][%mdl 8192]} (59... g5 $14) 60. Rxg7+ $18 {[%emt 0:00:22]} Kh8 {[%emt 0:00:02]} 61. Kf4 {[%emt 0:00:09] Ke5 would kill now.} Rh4+ {[%emt 0:00:12]} 62. Ke5 {[%emt 0:00:03] White mates.} Ng4+ {[%emt 0:00:05] [#]} 63. Rxg4 $1 {[%emt 0:02:57][%mdl 512]} Rxg4 {[%emt 0:00:02] KR-KN} 64. c5 {[%emt 0:00:01][%cal Bc4c5,Bc5c6][%mdl 32]} h5 {[%emt 0:00:39]} 65. c6 {[%emt 0:00:14]} h4 {[%emt 0:00:06]} 66. f6 {[%emt 0:00:28][%cal Bf5f6,Bf6f7][%mdl 32]} Kg8 {[%emt 0:00:18]} 67. Kd6 {[%emt 0:00:01]} Ra4 {[%emt 0:00:16]} 68. Ke7 {[%emt 0:00:03]} Ra8 {[%emt 0:00:07]} 69. f7+ {[%emt 0:00:05]} Kh8 {[%emt 0:00:12]} 70. Nd8 {[%emt 0:00:45] Weighted Error Value: White=0.13 (very precise) /Black=0.10 (very precise)} 1-0

[Event "FIDE WTC Prel-A 2022"]
[Site "Jerusalem"]
[Date "2022.11.22"]
[Round "5.7"]
[White "Bai, Jinshi"]
[Black "Gharamian, Tigran"]
[Result "1/2-1/2"]
[ECO "D31"]
[WhiteElo "2569"]
[BlackElo "2601"]
[Annotator "TA"]
[PlyCount "60"]
[EventDate "2022.11.20"]
[EventType "team-tourn"]
[EventCountry "ISR"]
[SourceTitle "playchess.com"]
[Source "ChessBase"]
[SourceQuality "1"]
[WhiteTeam "China"]
[BlackTeam "France"]
[WhiteTeamCountry "CHN"]
[BlackTeamCountry "FRA"]
[TimeControl "2700+10"]

{[%evp 9,60,19,47,14,14,21,25,14,30,26,24,19,14,17,17,15,16,-5,-17,-4,0,8,2,4,19,-13,-18,-12,-16,-15,0,-17,-26,-25,-8,-8,-4,-25,-25,-25,-25,-25,-25,-25,0,0,0,0,0,0,0,0,0]} 1. c4 {[%emt 0:00:03]} e6 {[%emt 0:00:02]} 2. Nc3 {[%emt 0:00:03]} d5 {[%emt 0:00:03]} 3. d4 {[%emt 0:00:03]} a6 {[%emt 0:00:04]} 4. cxd5 {[%emt 0:03:30]} exd5 {[%emt 0:00:11]} 5. Qb3 {[%emt 0:00:04]} Bd6 {[%emt 0:05:00]} 6. Nf3 {[%emt 0:00:39] D31: Queen's Gambit Declined: Semi-Slav without ...Nf6 (+ Marshall Gambit and Noteboom) and Exchange Variation lines without ...Nf6.} Ne7 {[%emt 0:00:09]} 7. Bg5 {[%emt 0:00:22]} (7. Nxd5 $2 Nxd5 8. e4 Nb6 $19) 7... Nbc6 {[%emt 0:05:25]} 8. e3 {[%emt 0:01:37] White has an edge.} Be6 {[%emt 0:01:24]} 9. Bd3 {[%emt 0:02:33]} (9. Qxb7 $2 Na5 10. Bxe7 Bxe7 11. Bb5+ Kf8 12. Qxa6 g6 $19) 9... O-O {[%emt 0:01:07] [#]} 10. O-O $146 {[%emt 0:01:55]} (10. Qxb7 $2 Na5 11. Bxe7 Bxe7 12. Qxa8 Qxa8 $19) ({Predecessor:} 10. a3 Qd7 11. Qc2 h6 12. Bh4 Nf5 13. O-O Nxh4 14. Nxh4 Ne7 15. Na4 {½-½ (48) Matlakov,M (2714)-Timofeev,A (2555) Sochi 2017}) 10... Qd7 {[%emt 0:01:33]} 11. Bh4 {[%emt 0:06:33]} ({Avoid the trap} 11. Qxb7 $2 Rfb8 12. Qxa8 Rxa8 $19) 11... Nf5 {[%emt 0:12:03]} 12. Bxf5 {[%emt 0:04:38]} ({Don't blunder} 12. Qxb7 $2 Nxh4 13. Nxh4 Rfb8 14. Qxa8 Rxa8 $19) 12... Bxf5 {[%emt 0:00:01]} 13. Nxd5 {[%emt 0:01:40]} Be6 $1 {[%emt 0:00:32] ...Bxd5 is the strong threat. This bishop pair is nice.} 14. e4 {[%emt 0:00:02][%cal Od5f6] [#]} Nb4 $1 {[%emt 0:04:26]} 15. Ne5 {[%emt 0:04:02]} Bxe5 {[%emt 0:04:39]} 16. Qxb4 {[%emt 0:00:18]} Bd6 {[%emt 0:00:50]} 17. Qc3 {[%emt 0:00:34]} ({Don't go for} 17. Qxb7 $2 Rfb8 18. Nb6 Rxb7 $19) 17... Bxd5 {[%emt 0:01:36]} 18. exd5 {[%emt 0:00:02]} Qb5 {[%emt 0:01:51]} 19. Qb3 {[%emt 0:00:02]} Rfe8 {[%emt 0:00:24]} 20. Rfe1 {[%emt 0:00:23]} Qxb3 {[%emt 0:00:27]} 21. axb3 {[%emt 0:00:02]} Rxe1+ {[%emt 0:00:01]} 22. Rxe1 $11 {[%emt 0:00:02][%mdl 4096] Endgame KRB-KRB} Kf8 {[%emt 0:00:01]} 23. Kf1 {[%emt 0:01:23]} f6 {[%emt 0:01:39]} 24. Bg3 {[%emt 0:05:06]} Bxg3 {[%emt 0:00:13]} 25. hxg3 {[%emt 0:00:01] KR-KR} Rd8 {[%emt 0:00:01]} 26. Rc1 {[%emt 0:00:01]} Rxd5 {[%emt 0:00:00]} 27. Rxc7 {[%emt 0:00:04] The position is equal.} Rxd4 {[%emt 0:00:02]} 28. Rxb7 {[%emt 0:00:11]} Rd2 {[%emt 0:00:01]} 29. Ra7 {[%emt 0:00:05]} Rxb2 {[%emt 0:00:02]} 30. Rxa6 {[%emt 0:00:01]} Rxb3 {[%emt 0:00:01] An interesting draw.  Weighted Error Value: White=0.08 (flawless) /Black=0.04 (flawless)} 1/2-1/2

[Event "FIDE WTC Prel-A 2022"]
[Site "Jerusalem"]
[Date "2022.11.22"]
[Round "5.8"]
[White "Lagarde, Maxime"]
[Black "Li, Di"]
[Result "0-1"]
[ECO "D35"]
[WhiteElo "2573"]
[BlackElo "2539"]
[Annotator "TA"]
[PlyCount "78"]
[EventDate "2022.11.20"]
[EventType "team-tourn"]
[EventCountry "ISR"]
[SourceTitle "playchess.com"]
[Source "ChessBase"]
[SourceQuality "1"]
[WhiteTeam "France"]
[BlackTeam "China"]
[WhiteTeamCountry "FRA"]
[BlackTeamCountry "CHN"]
[TimeControl "2700+10"]

{[%evp 15,78,20,20,14,27,25,35,27,31,22,24,29,22,27,32,21,21,21,21,21,28,16,16,0,2,-23,-38,-58,-66,-64,-64,-68,-67,-68,-68,-68,-68,-90,-91,-111,-72,-74,-74,-120,-97,-123,-95,-188,-195,-164,-132,-174,-153,-239,-223,-300,-290,-353,-350,-346,-303,-306,-292,-29994,-29995]} 1. d4 {[%emt 0:00:01]} Nf6 {[%emt 0:00:02]} 2. c4 {[%emt 0:00:01]} e6 {[%emt 0:00:01]} 3. Nc3 {[%emt 0:00:01]} d5 {[%emt 0:00:01]} 4. cxd5 {[%emt 0:00:04]} exd5 {[%emt 0:00:02]} 5. Bg5 {[%emt 0:00:02][%cal Bc1g5,Bg5h4,Bh4g3,Bg3f4][%mdl 32]} c6 {[%emt 0:00:01]} 6. e3 {[%emt 0:00:01]} h6 {[%emt 0:00:02]} 7. Bh4 {[%emt 0:00:05]} Be7 {[%emt 0:00:01]} 8. Bd3 {[%emt 0:00:03]} O-O {[%emt 0:00:05]} 9. Nge2 {[%emt 0:00:01] is currently scoring better than 9.Qc2. D35: Queen's Gambit Declined: Exchange Variation.} Ne8 {[%emt 0:00:38]} 10. Bg3 {[%emt 0:00:23]} Nd6 {[%emt 0:00:02]} 11. O-O {[%emt 0:00:06] White is slightly better.} Re8 {[%emt 0:00:23] [#]} 12. Bf4 $146 {[%emt 0:00:05]} ({Predecessor:} 12. Qc2 Bf8 13. Rad1 a5 14. a3 Nd7 15. h3 Nf6 16. Be5 Nfe4 17. Bxe4 dxe4 18. Ng3 {½-½ (30) Nisipeanu,L (2615)-Moussard,J (2686) Germany 2022}) 12... Bf5 {[%emt 0:02:34]} (12... Bg5 {is interesting.} 13. b4 Bf5 14. b5 Bxd3 15. Qxd3 Bxf4 16. Nxf4 Nd7) 13. Bxd6 {[%emt 0:00:04]} Bxd3 {[%emt 0:00:01]} 14. Bxe7 {[%emt 0:00:02]} Bxe2 {[%emt 0:00:02]} 15. Bxd8 {[%emt 0:00:02]} Bxd1 {[%emt 0:00:02]} 16. Rfxd1 {[%emt 0:00:16] [#] Strongly threatening Bc7.} Rxd8 {[%emt 0:00:01]} 17. b4 {[%emt 0:00:09]} a6 {[%emt 0:01:25]} 18. Rab1 {[%emt 0:00:17]} Nd7 {[%emt 0:00:11]} 19. Na4 {[%emt 0:00:06]} b5 {[%emt 0:01:17]} 20. Nc5 {[%emt 0:05:12]} Nxc5 $1 {[%emt 0:00:13]} 21. dxc5 $11 {[%emt 0:00:03][%mdl 4096] Endgame KRR-KRR} a5 {[%emt 0:00:55]} 22. a3 {[%emt 0:00:12]} Re8 {[%emt 0:00:08]} 23. Rd4 {[%emt 0:00:52]} axb4 {[%emt 0:00:31]} 24. axb4 {[%emt 0:00:01]} h5 {[%emt 0:01:23]} 25. h4 {[%emt 0:01:36]} f5 {[%emt 0:01:53]} 26. Rb2 {[%emt 0:08:12]} Kf7 {[%emt 0:00:25]} 27. Kf1 {[%emt 0:02:57]} Kf6 {[%emt 0:01:03]} 28. Ke2 {[%emt 0:00:04]} Ra1 {[%emt 0:03:12]} 29. f3 {[%emt 0:02:10]} (29. g3 $142) 29... Rc1 {[%emt 0:08:00] Black is more active.} 30. Kf2 {[%emt 0:02:55]} Ra8 {[%emt 0:03:14] Against Ra2} 31. g4 {[%emt 0:09:53]} (31. Rd3 $17 {was necessary.}) 31... hxg4 {[%emt 0:00:35]} 32. fxg4 {[%emt 0:00:02]} g6 {[%emt 0:00:07][%cal Bg7g6,Bg6f5][%mdl 32]} 33. gxf5 {[%emt 0:00:57]} gxf5 {[%emt 0:00:03]} ({Stronger than} 33... Kxf5 34. Rf4+ Ke5 35. Rf7 $15) 34. Kf3 {[%emt 0:00:47]} (34. Rf4 $17) 34... Rh1 $19 {[%emt 0:02:54] And now ...Rh3+ would win.} 35. Kg2 {[%emt 0:01:53]} Raa1 {[%emt 0:01:55]} 36. Rf4 {[%emt 0:03:21]} Rag1+ {[%emt 0:00:33]} 37. Kf2 {[%emt 0:00:04]} Rg8 {[%emt 0:00:39] ( -> ...Rh2+)} 38. Rb3 {[%emt 0:00:30]} Rh2+ {[%emt 0:00:06]} 39. Kf3 $2 {[%emt 0:00:09] [#]} (39. Kf1 $19) 39... Rhg2 {[%emt 0:00:10] Weighted Error Value: White=0.41/Black=0.04 (flawless)} 0-1

[Event "FIDE WTC Prel-A 2022"]
[Site "Jerusalem"]
[Date "2022.11.22"]
[Round "5.9"]
[White "Ivanchuk, Vasyl"]
[Black "Van Foreest, Jorden"]
[Result "0-1"]
[ECO "D40"]
[WhiteElo "2673"]
[BlackElo "2690"]
[Annotator "TA"]
[PlyCount "108"]
[EventDate "2022.11.20"]
[EventType "team-tourn"]
[EventCountry "ISR"]
[SourceTitle "playchess.com"]
[Source "ChessBase"]
[SourceQuality "1"]
[WhiteTeam "Ukraine"]
[BlackTeam "Netherlands"]
[WhiteTeamCountry "UKR"]
[BlackTeamCountry "NED"]
[TimeControl "2700+10"]

{[%evp 11,108,0,14,15,26,14,12,12,0,10,0,0,0,0,21,26,32,4,23,28,18,4,18,22,30,31,42,41,38,41,38,23,77,56,77,90,74,70,76,84,250,212,262,274,270,268,265,264,249,288,329,329,318,314,329,305,328,311,315,315,331,310,433,379,400,79,83,0,0,0,317,299,275,200,328,37,20,22,19,27,222,-334,-340,-372,-157,-342,-99,-983,-983,-975,-967,-967,-967,-967,-967,-967,-947,-887,-871]} 1. d4 {[%emt 0:00:03]} d5 {[%emt 0:00:04]} 2. c4 {[%emt 0:00:03]} e6 {[%emt 0:00:02]} 3. Nc3 {[%emt 0:00:04]} c5 {[%emt 0:00:03]} 4. cxd5 {[%emt 0:01:43]} exd5 {[%emt 0:00:03]} 5. Nf3 {[%emt 0:00:39]} Nf6 {[%emt 0:00:03]} 6. e3 {[%emt 0:03:04]} a6 {[%emt 0:01:00]} 7. b3 {[%emt 0:03:45] 7.g3 is becoming the main line. D40: Queen's Gambit Declined: Semi-Tarrasch with 5 e3.} Nc6 {[%emt 0:00:03]} 8. Bb2 {[%emt 0:00:06]} Bg4 {[%emt 0:00:12]} 9. Be2 {[%emt 0:02:06] The position is equal.} Bxf3 {[%emt 0:01:45]} 10. Bxf3 {[%emt 0:00:04] With the idea dxc5.} cxd4 {[%emt 0:00:02]} 11. exd4 {[%emt 0:00:01]} Bb4 {[%emt 0:00:28]} 12. O-O {[%emt 0:06:01][%cal Bh1f1,Bf1e1,Be1e2,Be2c2][%mdl 32]} O-O {[%emt 0:00:03]} (12... Bxc3 $5 13. Qe2+ (13. Bxc3 O-O $14) 13... Qe7 14. Qxe7+ (14. Bxc3 Qxe2 15. Bxe2 Ne4 $11) 14... Kxe7 15. Bxc3 Kd7 $11) 13. Na4 {[%emt 0:00:22][%cal Bc3a4,Ba4c5,Bc5d3][%mdl 32]} Re8 {[%emt 0:00:44]} 14. Nc5 {[%emt 0:00:31] [#]} b6 $146 {[%emt 0:04:23]} ({Predecessor:} 14... Ne4 15. a3 Bxc5 16. dxc5 Qg5 17. Bxe4 Rxe4 18. Qd3 Rae8 19. Rad1 d4 20. b4 Qd5 {0-1 (38) Shlyakhtenko,R (2351)-Amburgy,R (2030) Cherry Hill 2021}) 15. Nd3 {[%emt 0:01:57]} Bd6 {[%emt 0:00:13]} 16. Rc1 {[%emt 0:03:51]} Rc8 {[%emt 0:00:50]} 17. Re1 {[%emt 0:00:16]} Ne4 {[%emt 0:02:46]} 18. Re2 {[%emt 0:02:10]} Qd7 {[%emt 0:07:25]} (18... Qh4 19. g3 Qg5 20. Rec2 $16) 19. Rec2 {[%emt 0:03:48]} Nf6 {[%emt 0:03:29] Inhibits Bg4.} 20. g3 {[%emt 0:01:49]} g6 {[%emt 0:02:13]} 21. Bg2 {[%emt 0:02:43][%cal Od3e5] Threatens to win with Ne5! This bishop pair is nice.} Rc7 {[%emt 0:01:03]} (21... Nb4 $11) 22. Qf1 {[%emt 0:03:21] Hoping for Bh3.} Re7 {[%emt 0:03:29]} 23. Bh3 {[%emt 0:04:14]} Qe8 {[%emt 0:00:06]} 24. Ne5 {[%emt 0:00:24][%cal Re5c6]} Nb8 {[%emt 0:07:41]} 25. Ba3 $36 {[%emt 0:00:51][%mdl 2048] White has strong initiative.} Qd8 {[%emt 0:02:49] [#]} (25... Rxc2 $16 26. Rxc2 (26. Bxd6 Rxc1 27. Qxc1 Ra7 $11) 26... Bxa3) 26. Nd7 $1 $18 {[%emt 0:00:02][%mdl 512]} Rexd7 {[%emt 0:04:59]} (26... Rxc2 27. Nxf6+) 27. Bxd6 {[%emt 0:00:45]} Rxc2 {[%emt 0:00:04]} 28. Rxc2 {[%emt 0:00:02]} Rxd6 {[%emt 0:00:14]} 29. Rc8 {[%emt 0:00:02]} Qxc8 {[%emt 0:01:11]} 30. Bxc8 {[%emt 0:00:02]} Nc6 {[%emt 0:00:46]} 31. Qxa6 {[%emt 0:03:17]} (31. Bxa6 Nxd4 32. Qa1 Nc6 $18) 31... Nxd4 {[%emt 0:00:02]} 32. Kg2 {[%emt 0:00:01] Prevents Nf3.} Kg7 {[%emt 0:00:07]} 33. b4 {[%emt 0:00:53]} Nc2 {[%emt 0:00:01]} 34. Qa4 {[%emt 0:00:54]} Ne1+ {[%emt 0:00:06]} 35. Kf1 {[%emt 0:00:08]} Nf3 {[%emt 0:00:02]} 36. Qd1 {[%emt 0:00:31]} Ne5 {[%emt 0:01:49]} 37. Qd4 {[%emt 0:00:18]} Nf3 {[%emt 0:00:14]} 38. Qf4 {[%emt 0:00:09]} (38. Qe3 $18) 38... Ne4 $16 {[%emt 0:00:01]} 39. Kg2 {[%emt 0:00:23]} (39. Qc1 $16) 39... Ne1+ $11 {[%emt 0:00:02]} 40. Kf1 {[%emt 0:00:00]} Nd3 {[%emt 0:00:01][%mdl 8192]} (40... Nf3 $1 $11) 41. Qe3 $18 {[%emt 0:00:04]} Ndxf2 {[%emt 0:00:15] aiming for ...d4.} 42. Qd4+ $1 {[%emt 0:00:01]} Kg8 {[%emt 0:00:34]} (42... Rf6 $142 43. a4 (43. Qxd5 $2 Nd1+ 44. Ke1 Rf1+ 45. Kxf1 Ne3+ 46. Ke2 Nxd5 $19) 43... Kg8) 43. a4 $2 {[%emt 0:00:03]} (43. b5 $18) 43... Rc6 $14 {[%emt 0:00:01]} 44. Ba6 {[%emt 0:00:11][%mdl 1024] White has compensation.} Rc1+ $1 {[%emt 0:00:07]} 45. Kg2 {[%emt 0:00:11]} Ng4 $2 {[%emt 0:00:04]} (45... Rd1 $1 $11 46. Qxb6 Rd2) 46. Bd3 $4 {[%emt 0:00:26][%mdl 8192]} (46. Qxb6 Rc2+ 47. Kg1 Rc1+ 48. Kg2 (48. Bf1 $2 Nd2 $19) 48... Rc2+ 49. Kg1 Rc1+ 50. Kg2 $11 (50. Bf1 $2 Nd2 $19)) (46. h3 $1 $18 {[%cal Rh3g4] is the narrow road to win.} Ngf6 47. Qxb6 Rc2+ 48. Kf1) 46... Rd1 $19 {[%emt 0:00:04]} 47. a5 {[%emt 0:00:06]} Rd2+ {[%emt 0:00:04]} (47... bxa5 $1 $19 48. h3 (48. bxa5 $2 h5 $19) 48... Rd2+ 49. Kg1 Ngf2 50. bxa5 Nxh3+ 51. Kf1 Nhg5) 48. Kg1 $2 {[%emt 0:00:05] [#]} (48. Kf3 $17 Nxh2+ 49. Kf4 bxa5 50. Qxd5) 48... Nef2 $2 {[%emt 0:00:23] Really sharp!} (48... Nxh2 49. Qe3 bxa5 50. bxa5 $16 (50. Bxe4 dxe4 51. Qxe4 axb4 $11)) (48... bxa5 $1 $19 {is more deadly.} 49. h3 Ngf2 50. bxa5 Nxh3+ 51. Kf1 Nhg5) 49. Qxd5 $2 {[%emt 0:00:29][%mdl 8192]} (49. Qxb6 $17 Nxd3 50. h3) 49... Nh3+ {[%emt 0:00:08] Black is clearly winning.} (49... Rxd3 $2 {[#]} 50. Qxd3 $3 {[%mdl 512]} (50. Qa8+ Kg7 $14) 50... Nxd3 51. a6 Nxb4 52. a7 $18) ({Inferior is} 49... Nxd3 50. Qb7 Kg7 51. a6 $11) 50. Kf1 {[%emt 0:00:00]} Ne3+ {[%emt 0:00:00]} 51. Ke1 {[%emt 0:00:00]} Rd1+ {[%emt 0:00:05]} (51... Nxd5 $2 {perishes.} 52. Kxd2 bxa5 53. bxa5 $19) 52. Ke2 {[%emt 0:00:02]} Nxd5 {[%emt 0:01:27]} 53. Kxd1 Nf2+ {[%emt 0:00:00]} 54. Kd2 {[%emt 0:00:11]} Nxd3 {[%emt 0:00:00] Weighted Error Value: White=0.49/Black=0.45} 0-1

[Event "FIDE WTC Prel-A 2022"]
[Site "Jerusalem"]
[Date "2022.11.22"]
[Round "5.10"]
[White "Van Foreest, Lucas"]
[Black "Shevchenko, Kirill"]
[Result "0-1"]
[ECO "E71"]
[WhiteElo "2585"]
[BlackElo "2649"]
[Annotator "TA"]
[PlyCount "52"]
[EventDate "2022.11.20"]
[EventType "team-tourn"]
[EventCountry "ISR"]
[SourceTitle "playchess.com"]
[Source "ChessBase"]
[SourceQuality "1"]
[WhiteTeam "Netherlands"]
[BlackTeam "Ukraine"]
[WhiteTeamCountry "NED"]
[BlackTeamCountry "UKR"]
[TimeControl "2700+10"]

{[%evp 9,52,35,65,39,37,21,28,9,45,31,38,8,23,16,24,0,0,0,7,0,35,-53,-59,-66,-80,-86,-80,-85,-110,-87,0,0,61,8,0,0,24,-116,-117,-118,-118,-735,-718,-666,-639]} 1. d4 {[%emt 0:00:03]} Nf6 {[%emt 0:00:02]} 2. c4 {[%emt 0:00:03]} g6 {[%emt 0:00:01]} 3. Nc3 {[%emt 0:00:02]} Bg7 {[%emt 0:00:01]} 4. e4 {[%emt 0:00:07]} d6 {[%emt 0:00:02]} 5. h3 {[%emt 0:00:02]} e5 {[%emt 0:00:18]} 6. d5 {[%emt 0:00:25] E71: King's Indian: 4 e4 d6 5 h3.} a5 {[%emt 0:00:03]} 7. Be3 {[%emt 0:01:18]} Na6 {[%emt 0:00:13]} 8. Nf3 {[%emt 0:00:45] White has an edge.} Bd7 $5 {[%emt 0:00:15][%mdl 4] Leaves trodden paths.} 9. Bd3 {[%emt 0:00:38] [#]} Nh5 $146 {[%emt 0:03:15]} ({Predecessor:} 9... O-O 10. O-O Nh5 11. Re1 Kh8 12. Bf1 Qe8 13. Be2 Nf6 14. Nh2 Ng8 15. Qd2 Qe7 {½-½ (48) Martinovic,S (2447)-Damljanovic,B (2564) Paracin 2012}) 10. Qd2 {[%emt 0:02:13]} O-O {[%emt 0:02:33][%cal Oh5f4]} 11. O-O-O {[%emt 0:01:02]} Nf4 {[%emt 0:04:43]} 12. Bxf4 {[%emt 0:00:07]} exf4 {[%emt 0:00:01]} 13. Qxf4 {[%emt 0:00:04]} Nc5 {[%emt 0:06:03]} 14. Bc2 {[%emt 0:08:04]} Rb8 {[%emt 0:03:51]} (14... a4 $5 {[%cal Ra4a3]}) 15. e5 {[%emt 0:04:49]} (15. Nd4 $14) 15... b5 $15 {[%emt 0:01:34]} 16. exd6 {[%emt 0:03:24]} cxd6 {[%emt 0:00:07]} 17. Qxd6 {[%emt 0:00:16]} Nb7 {[%emt 0:00:28]} 18. Qf4 {[%emt 0:00:13]} bxc4 {[%emt 0:00:07]} 19. Ne5 {[%emt 0:04:12]} Nc5 {[%emt 0:03:37]} ({Black should play} 19... a4 $17 {[%cal Oa4a3] And now ...a3! would win.} 20. a3 (20. Bxa4 $2 Bxa4 21. Nxa4 Qd6 $19) (20. Nxc4 $2 Na5 $19) (20. Nxa4 $2 Bxa4 21. Bxa4 Qa5 $19) 20... Nd6) 20. Rhe1 $11 {[%emt 0:02:29]} (20. Nxd7 Nxd7 21. a4 Rb4 $17) 20... Qc7 {[%emt 0:03:30]} (20... a4 $11) 21. Re3 $1 $14 {[%emt 0:05:25][%cal Oe5g6] aiming for Nxg6!} Qb7 {[%emt 0:02:37] Chess con chili.} 22. Nxc4 {[%emt 0:00:04]} a4 {[%emt 0:00:00]} 23. Kd2 {[%emt 0:02:26] [#]} (23. Rd2 $11 {remains equal.}) 23... Qa6 $1 $17 {[%emt 0:01:57] Threatens to win with ...Rb4.} ({Don't play} 23... Bxc3+ 24. bxc3 Qxd5+ 25. Qd4 Qxd4+ 26. cxd4 $14) 24. a3 {[%emt 0:01:49] [#] Against Rb4} f5 $1 {[%emt 0:06:37][%cal Oc5e4] Hoping for ...Ne4+!} ({Resist} 24... g5 25. Qxg5 Kh8 26. Qf4 $18 (26. Rg3 $2 Bh6 $19)) 25. h4 $2 {[%emt 0:02:39][%mdl 8192]} (25. Ne5 $17 Rxb2 26. Nxd7 Nxd7 27. Rb1 Rxb1 28. Nxb1 (28. Bxb1 $2 Qf1 $17)) 25... Ne4+ $19 {[%emt 0:00:50]} 26. Bxe4 {[%emt 0:00:58]} Qxc4 {[%emt 0:00:26][%mdl 64] Pin.  Weighted Error Value: White=0.39/Black=0.16 (very precise)} 0-1